[Event "*** Titled Tuesday Blitz"]
[Site "Chess.com"]
[Date "2018.01.02"]
[Round "8"]
[White "TijanaBlagojevic"]
[Black "colemman"]
[Result "1/2-1/2"]
[WhiteElo "2372"]
[BlackElo "2414"]
[TimeControl "180+2"]
[EndTime "14:49:39 PST"]
[Termination "Game drawn by agreement"]

1. e4 {[%clk 0:03:01.9]} 1... c5 {[%clk 0:03:00.4]} 2. Nf3 {[%clk 0:03:02.8]}
2... e6 {[%clk 0:03:01]} 3. c4 {[%clk 0:03:03.2]} 3... Nc6 {[%clk 0:03:00.9]} 4.
d4 {[%clk 0:03:02.7]} 4... cxd4 {[%clk 0:03:01.4]} 5. Nxd4 {[%clk 0:03:04.6]}
5... Nge7 {[%clk 0:03:02.1]} 6. Nc3 {[%clk 0:03:01.1]} 6... Nxd4 {[%clk
0:03:02.3]} 7. Qxd4 {[%clk 0:03:02.1]} 7... Nc6 {[%clk 0:03:03.8]} 8. Qd3 {[%clk
0:03:01.8]} 8... Bc5 {[%clk 0:03:02.3]} 9. Be2 {[%clk 0:02:56.7]} 9... O-O
{[%clk 0:02:53.2]} 10. O-O {[%clk 0:02:57.4]} 10... b6 {[%clk 0:02:51.5]} 11. a3
{[%clk 0:02:57.6]} 11... Bb7 {[%clk 0:02:48.6]} 12. b4 {[%clk 0:02:58.2]} 12...
Be7 {[%clk 0:02:48.9]} 13. Bb2 {[%clk 0:02:56.2]} 13... Bf6 {[%clk 0:02:47.2]}
14. Rac1 {[%clk 0:02:55.6]} 14... Rc8 {[%clk 0:02:46]} 15. f4 {[%clk 0:02:55]}
15... Be7 {[%clk 0:02:30.1]} 16. Kh1 {[%clk 0:02:47.8]} 16... a6 {[%clk
0:02:24.6]} 17. Rfd1 {[%clk 0:02:47]} 17... Nb8 {[%clk 0:02:24.4]} 18. e5 {[%clk
0:02:45.7]} 18... Qc7 {[%clk 0:02:24.8]} 19. Ne4 {[%clk 0:02:41.3]} 19... Bxe4
{[%clk 0:02:20]} 20. Qxe4 {[%clk 0:02:43.2]} 20... Rfd8 {[%clk 0:02:21.1]} 21.
Bd3 {[%clk 0:02:44]} 21... g6 {[%clk 0:02:21.4]} 22. Rc3 {[%clk 0:02:09.4]}
22... Bf8 {[%clk 0:02:21.8]} 23. Bb1 {[%clk 0:02:07.9]} 23... d6 {[%clk
0:02:16.7]} 24. exd6 {[%clk 0:02:04.8]} 24... Rxd6 {[%clk 0:02:17.2]} 25. Rxd6
{[%clk 0:02:02.3]} 25... Qxd6 {[%clk 0:02:17.4]} 26. Rd3 {[%clk 0:02:03.8]}
26... Qe7 {[%clk 0:02:00.4]} 27. Qd4 {[%clk 0:02:03.1]} 27... e5 {[%clk
0:02:01]} 28. fxe5 {[%clk 0:01:42.3]} 28... Bg7 {[%clk 0:02:01.7]} 29. h3 {[%clk
0:01:38]} 29... Nc6 {[%clk 0:02:01.3]} 30. Qd7 {[%clk 0:01:32.2]} 30... Qxd7
{[%clk 0:02:00.3]} 31. Rxd7 {[%clk 0:01:34.1]} 31... Nxe5 {[%clk 0:02:01.4]} 32.
Bxe5 {[%clk 0:01:30.8]} 32... Bxe5 {[%clk 0:02:02.8]} 33. Ba2 {[%clk 0:01:32.1]}
33... Bb2 {[%clk 0:01:59.8]} 34. a4 {[%clk 0:01:25.7]} 34... Ba3 {[%clk
0:01:57]} 35. b5 {[%clk 0:01:26.8]} 35... a5 {[%clk 0:01:55.9]} 36. c5 {[%clk
0:01:26.7]} 36... Rxc5 {[%clk 0:01:47]} 37. Bxf7+ {[%clk 0:01:24.6]} 37... Kh8
{[%clk 0:01:47.8]} 38. Be6 {[%clk 0:01:24]} 38... Re5 {[%clk 0:01:44.2]} 39. Bd5
{[%clk 0:01:22.3]} 39... Bc5 {[%clk 0:01:43.1]} 40. Kh2 {[%clk 0:01:23.1]} 40...
Re3 {[%clk 0:01:42.9]} 41. g4 {[%clk 0:01:21.6]} 41... Ra3 {[%clk 0:01:39.7]}
42. g5 {[%clk 0:01:20.4]} 42... h6 {[%clk 0:01:23.7]} 43. gxh6 {[%clk
0:01:15.8]} 43... Rxa4 {[%clk 0:01:24.8]} 44. Kg3 {[%clk 0:00:52.8]} 44... Be3
{[%clk 0:01:15.9]} 45. h7 {[%clk 0:00:50.6]} 45... Bh6 {[%clk 0:01:04.2]} 46.
Kf3 {[%clk 0:00:46.8]} 46... Rb4 {[%clk 0:01:04.3]} 47. Be4 {[%clk 0:00:47.1]}
47... Rb3+ {[%clk 0:00:59.5]} 48. Kf2 {[%clk 0:00:47]} 48... Rb2+ {[%clk
0:00:55.5]} 49. Kf1 {[%clk 0:00:39.4]} 49... Rb1+ {[%clk 0:00:56.4]} 50. Ke2
{[%clk 0:00:39.7]} 50... Rg1 {[%clk 0:00:51.5]} 51. h4 {[%clk 0:00:34.8]} 51...
Bg7 {[%clk 0:00:44.4]} 52. h5 {[%clk 0:00:34.1]} 52... Kxh7 {[%clk 0:00:42.7]}
53. hxg6+ {[%clk 0:00:28.3]} 53... Kh6 {[%clk 0:00:43.5]} 54. Rb7 {[%clk
0:00:25.5]} 54... Rg4 {[%clk 0:00:36.3]} 55. Bf3 {[%clk 0:00:24.7]} 55... Rxg6
{[%clk 0:00:33.4]} 56. Be4 {[%clk 0:00:25.8]} 56... Rd6 {[%clk 0:00:32.2]} 57.
Bd3 {[%clk 0:00:25.2]} 57... a4 {[%clk 0:00:30.3]} 58. Kd2 {[%clk 0:00:26.3]}
58... a3 {[%clk 0:00:31.1]} 59. Ra7 {[%clk 0:00:25.4]} 59... Bb2 {[%clk
0:00:30.9]} 60. Kc2 {[%clk 0:00:26.6]} 60... Rd5 {[%clk 0:00:31]} 61. Bc4 {[%clk
0:00:27.6]} 61... Re5 {[%clk 0:00:30.3]} 62. Kb3 {[%clk 0:00:28.4]} 62... Re3+
{[%clk 0:00:31.2]} 63. Ka2 {[%clk 0:00:29.4]} 63... Rc3 {[%clk 0:00:31.8]} 64.
Bb3 {[%clk 0:00:30.2]} 64... Rc5 {[%clk 0:00:32.5]} 65. Ba4 {[%clk 0:00:30.1]}
65... Rc4 {[%clk 0:00:33.6]} 66. Ra6 {[%clk 0:00:28.9]} 66... Rb4 {[%clk
0:00:33.7]} 67. Rxb6+ {[%clk 0:00:28.4]} 67... Kg5 {[%clk 0:00:35.2]} 68. Ra6
{[%clk 0:00:30.3]} 68... Kf5 {[%clk 0:00:34.8]} 69. b6 {[%clk 0:00:31.6]} 69...
Bc1 {[%clk 0:00:33.8]} 70. Bb3 {[%clk 0:00:32.5]} 70... Be3 {[%clk 0:00:32.3]}
71. Kxa3 {[%clk 0:00:31.6]} 71... Rxb6 {[%clk 0:00:33.2]} 72. Bc2+ {[%clk
0:00:32.7]} 72... Kf4 {[%clk 0:00:33.6]} 73. Rxb6 {[%clk 0:00:33.4]} 73... Bxb6
{[%clk 0:00:35.5]} 74. Kb3 {[%clk 0:00:34.3]} 74... Be3 {[%clk 0:00:36.8]}
1/2-1/2

[Event "*** Titled Tuesday Blitz"]
[Site "Chess.com"]
[Date "2018.01.02"]
[Round "8"]
[White "RoelandPruijssers"]
[Black "AkshatChandra"]
[Result "0-1"]
[WhiteElo "2549"]
[BlackElo "2689"]
[TimeControl "180+2"]
[EndTime "14:49:50 PST"]
[Termination "AkshatChandra won by resignation"]

1. e4 {[%clk 0:03:01.1]} 1... e5 {[%clk 0:03:01]} 2. Nf3 {[%clk 0:02:56.5]} 2...
Nc6 {[%clk 0:03:02.5]} 3. Bc4 {[%clk 0:02:58.1]} 3... Bc5 {[%clk 0:03:03.3]} 4.
c3 {[%clk 0:02:59]} 4... Nf6 {[%clk 0:03:04.6]} 5. d3 {[%clk 0:03:00.6]} 5... d6
{[%clk 0:03:05.2]} 6. Bb3 {[%clk 0:03:00.9]} 6... O-O {[%clk 0:03:01.7]} 7. Nbd2
{[%clk 0:02:59.3]} 7... a5 {[%clk 0:03:01.4]} 8. h3 {[%clk 0:02:59.1]} 8... d5
{[%clk 0:02:46.7]} 9. exd5 {[%clk 0:02:57.9]} 9... Nxd5 {[%clk 0:02:47.4]} 10.
Ne4 {[%clk 0:02:57.7]} 10... Bb6 {[%clk 0:02:41.4]} 11. O-O {[%clk 0:02:58.4]}
11... h6 {[%clk 0:02:42.2]} 12. Re1 {[%clk 0:02:54.4]} 12... Nf6 {[%clk
0:02:04.6]} 13. Ng3 {[%clk 0:02:42.9]} 13... Re8 {[%clk 0:02:01.3]} 14. Ba4
{[%clk 0:02:36.9]} 14... Qd6 {[%clk 0:01:49.8]} 15. Be3 {[%clk 0:02:13.4]} 15...
Bxe3 {[%clk 0:01:45.9]} 16. Rxe3 {[%clk 0:02:15.3]} 16... Bd7 {[%clk 0:01:47]}
17. Qd2 {[%clk 0:01:25.4]} 17... Nd5 {[%clk 0:01:44.8]} 18. Ree1 {[%clk
0:01:20.9]} 18... Rad8 {[%clk 0:01:44.7]} 19. Rad1 {[%clk 0:01:17.7]} 19... Qf6
{[%clk 0:01:34.1]} 20. Ne4 {[%clk 0:01:10.1]} 20... Qg6 {[%clk 0:01:34.3]} 21.
Kh1 {[%clk 0:01:03.4]} 21... Nf4 {[%clk 0:01:33.8]} 22. Ng3 {[%clk 0:01:04.4]}
22... Bxh3 {[%clk 0:01:24.9]} 23. gxh3 {[%clk 0:01:02.1]} 23... Rxd3 {[%clk
0:01:25.2]} 24. Nxe5 {[%clk 0:00:24.1]} 24... Rxd2 {[%clk 0:00:50.9]} 25. Nxg6
{[%clk 0:00:25]} 25... Rxe1+ {[%clk 0:00:52.8]} 26. Rxe1 {[%clk 0:00:25.7]}
26... fxg6 {[%clk 0:00:54.7]} 27. h4 {[%clk 0:00:19.5]} 27... Rxf2 {[%clk
0:00:41.7]} 28. Bb3+ {[%clk 0:00:20.7]} 28... Kf8 {[%clk 0:00:40.4]} 29. Ne4
{[%clk 0:00:21.4]} 29... Rxb2 {[%clk 0:00:39.5]} 30. Rf1 {[%clk 0:00:22.4]}
30... Ke7 {[%clk 0:00:37.1]} 31. Rxf4 {[%clk 0:00:23]} 31... Ne5 {[%clk
0:00:36.5]} 32. Rf2 {[%clk 0:00:23.4]} 32... Rxf2 {[%clk 0:00:34.4]} 33. Nxf2
{[%clk 0:00:25.3]} 33... Nf3 {[%clk 0:00:33.1]} 34. Bc2 {[%clk 0:00:23.3]} 34...
Nxh4 {[%clk 0:00:33.6]} 35. Be4 {[%clk 0:00:24.8]} 35... b5 {[%clk 0:00:32.9]}
36. Nd3 {[%clk 0:00:25.1]} 36... Kd6 {[%clk 0:00:33.5]} 37. Kh2 {[%clk 0:00:26]}
37... c5 {[%clk 0:00:32]} 38. Nf4 {[%clk 0:00:27.1]} 38... g5 {[%clk 0:00:32.4]}
39. Nd3 {[%clk 0:00:26.6]} 39... c4 {[%clk 0:00:33.1]} 40. Nb2 {[%clk
0:00:26.2]} 40... a4 {[%clk 0:00:29.5]} 41. Kg3 {[%clk 0:00:25.6]} 41... Kc5
{[%clk 0:00:28.1]} 42. a3 {[%clk 0:00:26.3]} 42... g6 {[%clk 0:00:28.5]} 43. Nd1
{[%clk 0:00:27.5]} 43... Nf5+ {[%clk 0:00:29.3]} 44. Kf3 {[%clk 0:00:25.5]}
44... h5 {[%clk 0:00:28.8]} 45. Ne3 {[%clk 0:00:25.9]} 45... Ne7 {[%clk
0:00:21.3]} 46. Nc2 {[%clk 0:00:24.5]} 46... Nd5 {[%clk 0:00:22.2]} 47. Bxd5
{[%clk 0:00:23.8]} 47... Kxd5 {[%clk 0:00:24.1]} 48. Nd4 {[%clk 0:00:23.9]}
48... b4 {[%clk 0:00:05]} 49. axb4 {[%clk 0:00:25.8]} 49... a3 {[%clk
0:00:06.3]} 50. Nc2 {[%clk 0:00:27.3]} 50... a2 {[%clk 0:00:07.6]} 51. Ne3+
{[%clk 0:00:26.2]} 51... Kc6 {[%clk 0:00:06.7]} 52. Nc2 {[%clk 0:00:28.1]} 52...
g4+ {[%clk 0:00:06.9]} 53. Kg3 {[%clk 0:00:29.5]} 53... g5 {[%clk 0:00:07.8]}
54. Na1 {[%clk 0:00:30.2]} 54... Kb5 {[%clk 0:00:08.5]} 55. Nc2 {[%clk
0:00:31.4]} 55... Ka6 {[%clk 0:00:09.7]} 56. Na1 {[%clk 0:00:31.9]} 56... Kb6
{[%clk 0:00:10.9]} 57. Nc2 {[%clk 0:00:32.8]} 57... Kb5 {[%clk 0:00:12.6]} 58.
Na1 {[%clk 0:00:34]} 58... Ka4 {[%clk 0:00:14.3]} 59. Kg2 {[%clk 0:00:32.5]}
59... h4 {[%clk 0:00:15.3]} 60. Kh2 {[%clk 0:00:33.8]} 60... g3+ {[%clk
0:00:15.1]} 61. Kh3 {[%clk 0:00:35.1]} 61... g4+ {[%clk 0:00:16.4]} 62. Kg2
{[%clk 0:00:36.4]} 62... Kb5 {[%clk 0:00:15.7]} 63. Nc2 {[%clk 0:00:37.3]} 63...
Kc6 {[%clk 0:00:17.3]} 64. Nd4+ {[%clk 0:00:37.9]} 64... Kb6 {[%clk 0:00:18]}
65. Nc2 {[%clk 0:00:39.5]} 65... Ka7 {[%clk 0:00:18.8]} 66. Na1 {[%clk
0:00:39.7]} 66... Ka6 {[%clk 0:00:20.4]} 67. Nc2 {[%clk 0:00:41.2]} 67... Kb5
{[%clk 0:00:18.7]} 68. Na1 {[%clk 0:00:42.3]} 68... Ka4 {[%clk 0:00:19.8]} 69.
Nc2 {[%clk 0:00:42]} 69... Kb3 {[%clk 0:00:11.3]} 70. Na1+ {[%clk 0:00:41.9]}
70... Kb2 {[%clk 0:00:12.6]} 71. b5 {[%clk 0:00:43.5]} 71... Kxa1 {[%clk
0:00:14.2]} 72. b6 {[%clk 0:00:45.4]} 72... Kb2 {[%clk 0:00:13.8]} 73. b7 {[%clk
0:00:47.3]} 73... a1=Q {[%clk 0:00:15.3]} 74. b8=Q+ {[%clk 0:00:49.2]} 74... Kc2
{[%clk 0:00:17]} 75. Qf4 {[%clk 0:00:44.2]} 75... Qxc3 {[%clk 0:00:16.6]} 76.
Qxg4 {[%clk 0:00:45.6]} 76... Qd2+ {[%clk 0:00:17.4]} 77. Kf3 {[%clk 0:00:44.7]}
77... Qd1+ {[%clk 0:00:18.3]} 0-1

[Event "*** Titled Tuesday Blitz"]
[Site "Chess.com"]
[Date "2018.01.02"]
[Round "8"]
[White "MITerryble"]
[Black "gmmoranda"]
[Result "1-0"]
[WhiteElo "2683"]
[BlackElo "2730"]
[TimeControl "180+2"]
[EndTime "14:49:59 PST"]
[Termination "MITerryble won by resignation"]

1. d4 {[%clk 0:03:01.3]} 1... Nf6 {[%clk 0:03:00.8]} 2. Nf3 {[%clk 0:03:02.3]}
2... e6 {[%clk 0:03:02]} 3. c4 {[%clk 0:03:03.2]} 3... d5 {[%clk 0:03:00.6]} 4.
e3 {[%clk 0:03:03.7]} 4... a6 {[%clk 0:02:57.1]} 5. b3 {[%clk 0:03:02.8]} 5...
c5 {[%clk 0:02:55.6]} 6. Bb2 {[%clk 0:03:01.7]} 6... Nc6 {[%clk 0:02:52.1]} 7.
dxc5 {[%clk 0:03:01.8]} 7... Bxc5 {[%clk 0:02:53]} 8. a3 {[%clk 0:03:02.4]} 8...
O-O {[%clk 0:02:52.1]} 9. b4 {[%clk 0:02:59.1]} 9... Ba7 {[%clk 0:02:53.3]} 10.
Nbd2 {[%clk 0:02:58]} 10... Qe7 {[%clk 0:02:47.8]} 11. Be2 {[%clk 0:02:50]}
11... Rd8 {[%clk 0:02:44.3]} 12. Qc2 {[%clk 0:02:40.2]} 12... e5 {[%clk
0:02:42.3]} 13. cxd5 {[%clk 0:02:39.1]} 13... Nxd5 {[%clk 0:02:43.3]} 14. O-O
{[%clk 0:02:32.6]} 14... Be6 {[%clk 0:02:38.2]} 15. Ne4 {[%clk 0:01:57.2]} 15...
Bf5 {[%clk 0:02:25.4]} 16. Rad1 {[%clk 0:01:56.4]} 16... Rac8 {[%clk 0:02:20.3]}
17. Qb1 {[%clk 0:01:55.6]} 17... Bg6 {[%clk 0:02:12.4]} 18. Bd3 {[%clk 0:01:32]}
18... h6 {[%clk 0:01:24.9]} 19. Ng3 {[%clk 0:00:50.1]} 19... Bxd3 {[%clk
0:01:24.4]} 20. Rxd3 {[%clk 0:00:51.6]} 20... Qe6 {[%clk 0:01:10]} 21. Rdd1
{[%clk 0:00:42.4]} 21... Nde7 {[%clk 0:01:01.2]} 22. Rxd8+ {[%clk 0:00:37.5]}
22... Rxd8 {[%clk 0:01:03.1]} 23. Rd1 {[%clk 0:00:38.9]} 23... Rxd1+ {[%clk
0:01:02.8]} 24. Qxd1 {[%clk 0:00:40.3]} 24... f6 {[%clk 0:01:03.3]} 25. Qc2
{[%clk 0:00:39]} 25... b5 {[%clk 0:00:58.9]} 26. h4 {[%clk 0:00:37.1]} 26... Qd5
{[%clk 0:00:50.5]} 27. h5 {[%clk 0:00:35.8]} 27... Bb6 {[%clk 0:00:51.7]} 28.
Nd2 {[%clk 0:00:27.3]} 28... Kf7 {[%clk 0:00:49]} 29. Nf3 {[%clk 0:00:28.2]}
29... Nd8 {[%clk 0:00:38.9]} 30. Nh4 {[%clk 0:00:25]} 30... Qc4 {[%clk
0:00:36.2]} 31. Qe4 {[%clk 0:00:21.1]} 31... Ne6 {[%clk 0:00:30.8]} 32. Nhf5
{[%clk 0:00:18.1]} 32... Qxe4 {[%clk 0:00:28.9]} 33. Nd6+ {[%clk 0:00:19.1]}
33... Kf8 {[%clk 0:00:29.8]} 34. Ngxe4 {[%clk 0:00:18.4]} 34... Nd5 {[%clk
0:00:28.9]} 35. g4 {[%clk 0:00:16.9]} 35... Ng5 {[%clk 0:00:26.6]} 36. Nxg5
{[%clk 0:00:15.7]} 36... hxg5 {[%clk 0:00:28.5]} 37. Kg2 {[%clk 0:00:13.2]}
37... Ke7 {[%clk 0:00:27.9]} 38. Nf5+ {[%clk 0:00:14.1]} 38... Kf7 {[%clk
0:00:29.4]} 39. Kf3 {[%clk 0:00:16]} 39... Bc7 {[%clk 0:00:28.5]} 40. Ke4 {[%clk
0:00:15]} 40... Nb6 {[%clk 0:00:29.2]} 41. Ng3 {[%clk 0:00:12.6]} 41... Bd6
{[%clk 0:00:28.7]} 42. Kd3 {[%clk 0:00:12.3]} 42... Ke6 {[%clk 0:00:28.7]} 43.
Nf5 {[%clk 0:00:12.6]} 43... Bf8 {[%clk 0:00:29.5]} 44. Bc1 {[%clk 0:00:13.4]}
44... Nc4 {[%clk 0:00:30.5]} 45. Kc3 {[%clk 0:00:12.5]} 45... Kd5 {[%clk
0:00:30.4]} 46. f3 {[%clk 0:00:13.6]} 46... e4 {[%clk 0:00:29.4]} 47. f4 {[%clk
0:00:14.8]} 47... Nb6 {[%clk 0:00:21.3]} 48. fxg5 {[%clk 0:00:13]} 48... fxg5
{[%clk 0:00:23.2]} 49. Kc2 {[%clk 0:00:14]} 49... Nc4 {[%clk 0:00:24.6]} 50. Bb2
{[%clk 0:00:11.1]} 50... Ke6 {[%clk 0:00:23.7]} 51. Bxg7 {[%clk 0:00:07.3]}
51... Nxe3+ {[%clk 0:00:25.1]} 52. Nxe3 {[%clk 0:00:06.1]} 52... Bxg7 {[%clk
0:00:26.5]} 53. Nf5 {[%clk 0:00:07.4]} 53... Be5 {[%clk 0:00:27.6]} 54. Kd2
{[%clk 0:00:05]} 54... Kd5 {[%clk 0:00:27.9]} 55. h6 {[%clk 0:00:05.6]} 55...
Bf4+ {[%clk 0:00:28.4]} 56. Kc3 {[%clk 0:00:05.3]} 56... Be5+ {[%clk 0:00:26.8]}
57. Kd2 {[%clk 0:00:06.7]} 57... Bf4+ {[%clk 0:00:27]} 58. Kc3 {[%clk
0:00:07.6]} 58... Be5+ {[%clk 0:00:25.7]} 59. Kc2 {[%clk 0:00:08.5]} 59... e3
{[%clk 0:00:22.5]} 60. Kd3 {[%clk 0:00:09.1]} 60... e2 {[%clk 0:00:23.4]} 61.
Kxe2 {[%clk 0:00:10.2]} 61... Ke4 {[%clk 0:00:24.8]} 62. h7 {[%clk 0:00:11.2]}
62... Kf4 {[%clk 0:00:25.7]} 63. Nh6 {[%clk 0:00:12.3]} 63... Bb2 {[%clk
0:00:25.2]} 64. Kf2 {[%clk 0:00:11.9]} 64... Bd4+ {[%clk 0:00:25.3]} 65. Kg2
{[%clk 0:00:13]} 65... Bb2 {[%clk 0:00:25.5]} 66. Kh3 {[%clk 0:00:13.9]} 66...
Ke4 {[%clk 0:00:23.7]} 67. Nf7 {[%clk 0:00:14.6]} 67... Kd5 {[%clk 0:00:25.1]}
68. Nxg5 {[%clk 0:00:14]} 68... Kc4 {[%clk 0:00:25.9]} 69. Nf7 {[%clk 0:00:15]}
69... Kb3 {[%clk 0:00:26.6]} 70. h8=Q {[%clk 0:00:16.3]} 70... Bxh8 {[%clk
0:00:26.9]} 71. Nxh8 {[%clk 0:00:18.2]} 71... Kxa3 {[%clk 0:00:27.9]} 72. g5
{[%clk 0:00:19.4]} 72... Kxb4 {[%clk 0:00:27.4]} 73. g6 {[%clk 0:00:20.5]} 73...
a5 {[%clk 0:00:29]} 74. g7 {[%clk 0:00:20.4]} 74... a4 {[%clk 0:00:30.4]} 75.
g8=Q {[%clk 0:00:21.7]} 1-0

[Event "*** Titled Tuesday Blitz"]
[Site "Chess.com"]
[Date "2018.01.02"]
[Round "8"]
[White "DanielNaroditsky"]
[Black "djogrodek1"]
[Result "1-0"]
[WhiteElo "2810"]
[BlackElo "2469"]
[TimeControl "180+2"]
[EndTime "14:49:59 PST"]
[Termination "DanielNaroditsky won by resignation"]

1. d4 {[%clk 0:03:01.9]} 1... d5 {[%clk 0:03:00.2]} 2. c4 {[%clk 0:03:02.6]}
2... c6 {[%clk 0:03:01.4]} 3. Nf3 {[%clk 0:03:03.1]} 3... Nf6 {[%clk 0:03:02.4]}
4. Nc3 {[%clk 0:03:02.7]} 4... e6 {[%clk 0:03:03.4]} 5. g3 {[%clk 0:03:03.4]}
5... dxc4 {[%clk 0:03:00.9]} 6. Bg2 {[%clk 0:03:05.3]} 6... Nbd7 {[%clk
0:03:00.5]} 7. O-O {[%clk 0:03:06.3]} 7... b5 {[%clk 0:03:01.8]} 8. e4 {[%clk
0:03:05.9]} 8... Bb7 {[%clk 0:03:03]} 9. e5 {[%clk 0:03:05.7]} 9... Nd5 {[%clk
0:03:03.9]} 10. Ng5 {[%clk 0:03:07.4]} 10... h6 {[%clk 0:02:47.7]} 11. Qh5
{[%clk 0:03:06.1]} 11... g6 {[%clk 0:02:48.5]} 12. Qh3 {[%clk 0:03:06.6]} 12...
Be7 {[%clk 0:02:45.2]} 13. Nge4 {[%clk 0:02:47]} 13... Kf8 {[%clk 0:02:42.9]}
14. Nd6 {[%clk 0:02:33.6]} 14... Bxd6 {[%clk 0:02:19.5]} 15. exd6 {[%clk
0:02:35.5]} 15... Nxc3 {[%clk 0:02:14.2]} 16. bxc3 {[%clk 0:02:35.2]} 16... Kg7
{[%clk 0:01:51.8]} 17. a4 {[%clk 0:02:34]} 17... a6 {[%clk 0:01:50]} 18. Be3
{[%clk 0:02:19.7]} 18... Nf6 {[%clk 0:01:37.4]} 19. d5 {[%clk 0:02:14.1]} 19...
Nxd5 {[%clk 0:01:26.3]} 20. Bd4+ {[%clk 0:02:13.2]} 20... e5 {[%clk 0:01:22.4]}
21. Bxe5+ {[%clk 0:02:10.7]} 21... f6 {[%clk 0:01:23.6]} 22. Bd4 {[%clk
0:01:54.9]} 22... Qxd6 {[%clk 0:01:23.6]} 23. Rfe1 {[%clk 0:01:45.4]} 23... Rae8
{[%clk 0:01:20.7]} 24. axb5 {[%clk 0:01:44.6]} 24... cxb5 {[%clk 0:01:15.5]} 25.
Rad1 {[%clk 0:01:44.8]} 25... h5 {[%clk 0:00:56.9]} 26. Qh4 {[%clk 0:01:41.9]}
26... Rhf8 {[%clk 0:00:33.5]} 27. Be4 {[%clk 0:01:34.4]} 27... Rf7 {[%clk
0:00:25.9]} 28. Bc2 {[%clk 0:00:50.8]} 28... Rxe1+ {[%clk 0:00:21.4]} 29. Rxe1
{[%clk 0:00:52.7]} 29... Re7 {[%clk 0:00:21.3]} 30. Rd1 {[%clk 0:00:53.8]} 30...
Qe6 {[%clk 0:00:21.3]} 31. Rf1 {[%clk 0:00:39.5]} 31... Qe2 {[%clk 0:00:19.6]}
32. Bd1 {[%clk 0:00:30.5]} 32... Qe6 {[%clk 0:00:16.2]} 33. Bc2 {[%clk
0:00:20.9]} 33... Qe2 {[%clk 0:00:15.7]} 34. Bd1 {[%clk 0:00:21.9]} 34... Qe6
{[%clk 0:00:16.8]} 35. g4 {[%clk 0:00:21.5]} 35... Qe4 {[%clk 0:00:11.2]} 36. f3
{[%clk 0:00:19.5]} 36... Qf4 {[%clk 0:00:08.1]} 37. Qg3 {[%clk 0:00:17]} 37...
Qxg3+ {[%clk 0:00:06.8]} 38. hxg3 {[%clk 0:00:18.9]} 38... Ne3 {[%clk
0:00:06.2]} 39. Re1 {[%clk 0:00:20.1]} 39... Nd5 {[%clk 0:00:07.4]} 40. Rf1
{[%clk 0:00:18.3]} 40... Kf7 {[%clk 0:00:06.8]} 41. gxh5 {[%clk 0:00:19.3]}
41... gxh5 {[%clk 0:00:08.7]} 42. f4 {[%clk 0:00:20.9]} 42... Kg6 {[%clk
0:00:08.9]} 43. f5+ {[%clk 0:00:22.3]} 43... Kg5 {[%clk 0:00:09.2]} 44. Kf2
{[%clk 0:00:24.2]} 44... Nc7 {[%clk 0:00:07.7]} 45. Be3+ {[%clk 0:00:18.4]}
45... Kxf5 {[%clk 0:00:07.1]} 46. Bxh5 {[%clk 0:00:20.1]} 46... Ke6 {[%clk
0:00:07.4]} 47. Bc5 {[%clk 0:00:19.3]} 47... Rh7 {[%clk 0:00:06.8]} 48. g4
{[%clk 0:00:16.9]} 48... Nd5 {[%clk 0:00:06.2]} 49. Re1+ {[%clk 0:00:18.4]}
49... Kd7 {[%clk 0:00:07.2]} 50. Bd4 {[%clk 0:00:17.3]} 50... Kd6 {[%clk
0:00:07.3]} 51. Re8 {[%clk 0:00:15.6]} 51... Bc6 {[%clk 0:00:07.2]} 52. Rd8+
{[%clk 0:00:15.5]} 52... Kc7 {[%clk 0:00:07.8]} 53. Rf8 {[%clk 0:00:16.1]} 53...
Kd6 {[%clk 0:00:07.1]} 54. Kg3 {[%clk 0:00:15.5]} 54... a5 {[%clk 0:00:07.6]}
55. Bg6 {[%clk 0:00:12.6]} 55... Re7 {[%clk 0:00:07.5]} 56. Bf5 {[%clk
0:00:08.7]} 56... Re1 {[%clk 0:00:07.3]} 57. Rd8+ {[%clk 0:00:08.2]} 57... Kc7
{[%clk 0:00:08.2]} 58. Rc8+ {[%clk 0:00:09.9]} 58... Kd6 {[%clk 0:00:09.5]} 59.
Rd8+ {[%clk 0:00:10.8]} 59... Kc7 {[%clk 0:00:10.8]} 60. Rc8+ {[%clk 0:00:12.5]}
60... Kd6 {[%clk 0:00:11.2]} 61. Rd8+ {[%clk 0:00:09.7]} 61... Kc7 {[%clk
0:00:12.4]} 62. Rh8 {[%clk 0:00:11.5]} 62... b4 {[%clk 0:00:12.2]} 63. Bc5
{[%clk 0:00:13.1]} 63... Nb6 {[%clk 0:00:09.5]} 64. Rh7+ {[%clk 0:00:12.4]}
64... Nd7 {[%clk 0:00:10.7]} 65. cxb4 {[%clk 0:00:13.3]} 65... axb4 {[%clk
0:00:11.3]} 66. Bxb4 {[%clk 0:00:15.2]} 66... Rb1 {[%clk 0:00:11.9]} 67. Bxb1
{[%clk 0:00:15.3]} 1-0